Cogmind - Beta 15 @@@ ROGUE MODE // 2025.06.01 @ 15:49:52 Player: Polariusz Result: Self-destructed Performance ------------- Evolutions (2) 1000 Regions Visited (3) 600 Robots Destroyed (27) 135 Value Destroyed (645) 645 Prototype IDs (19) 380 Alien Tech Used (0) 0 Bonus (0) 0 TOTAL SCORE: 2760 Bonus ------- None Cogmind --------- Core Integrity 497/550 Matter 295/300 Energy 20/100 System Corruption 0% Temperature Cool (0) Movement Core (600) Ox11 Location -8/Materials Parts ------- > --- POWER (1) -------- (None) > --- PROPULSION (3+3) - Arachnoskeleton > --- UTILITY (4) ------ Heat Sink Large Storage Unit Makeshift Light Armor Plating Hacking Suite > --- WEAPON (3) ------- Particle Cannon Particle Cannon Ripper > --- INVENTORY (15) --- Reaction Control System Hacking Suite Medium Laser Pulse Rifle Beam Cannon Grenade Launcher Peak State ------------ > --- POWER ------------ Light Nuclear Core > --- PROPULSION ------- Arachnoskeleton > --- UTILITY ---------- Heat Sink Small Storage Unit Makeshift Light Armor Plating Hacking Suite > --- WEAPON ----------- Particle Cannon Particle Cannon Ripper > --- INVENTORY -------- Large Storage Unit Hacking Suite Medium Laser Pulse Rifle Beam Cannon Grenade Launcher [Rating: 42] Favorites ----------- Power Ion Engine Engine Ion Engine Power Core Light Nuclear Core Propulsion Light Treads Treads Light Treads Leg Arachnoskeleton Wheel Wheel Utility Small Storage Unit Device Heat Sink Storage Small Storage Unit Hackware Hacking Suite Protection Makeshift Light Armor Plating Weapon Medium Laser Energy Gun Medium Laser Energy Cannon Particle Cannon Ballistic Cannon Light Cannon Slashing Weapon Ripper Build | -11 -10 -10 -8 ------- Run | Yrd Mat Sub Mat Slots Evolved 4 | . . . 4 Power . | . . . . Propulsion 1 | . . . 1 Utility 2 | . . . 2 Weapon 1 | . . . 1 Parts Attached 28 | 6 10 4 8 Power 5 | 1 3 1 . Engine 4 | 1 3 . . Core 1 | . . 1 . Reactor . | . . . . Propulsion 6 | 2 2 1 1 Treads 3 | . 2 1 . Leg 1 | . . . 1 Wheel 2 | 2 . . . Hover . | . . . . Flight . | . . . . Utility 7 | 1 3 . 3 Device 3 | . 3 . . Storage 2 | 1 . . 1 Processor . | . . . . Hackware 1 | . . . 1 Protection 1 | . . . 1 Artifact . | . . . . Weapon 10 | 2 2 2 4 Energy Gun 5 | 2 1 1 1 Energy Cannon 3 | . . . 3 Ballistic Gun . | . . . . Ballistic Cannon 1 | . 1 . . Launcher . | . . . . Special Weapon . | . . . . Impact Weapon . | . . . . Slashing Weapon 1 | . . 1 . Piercing Weapon . | . . . . Special Melee Weapon . | . . . . Unidentified Prototypes . | . . . . Parts Lost 6 | . 4 . 2 Power 3 | . 2 . 1 Propulsion 1 | . 1 . . Utility . | . . . . Weapon 2 | . 1 . 1 Highest Loss Streak 2 | . 2 . 1 To Critical Strikes . | . . . . Average Backups 7 | 1 7 7 5 Power 1 | . 1 . . Propulsion 1 | 1 1 . . Utility 2 | . 2 3 1 Weapon 2 | . 1 2 3 Tool/Special . | . . . . Unused Backups 6 | . 1 2 3 Power 1 | . 1 . . Propulsion . | . . . . Utility 3 | . . 1 2 Weapon 2 | . . 1 1 Tool/Special . | . . . . Average Slot Usage (%) 93 | . 94 100 62 Engine 11 | . 13 10 . Core 1 | . . 3 5 Treads 14 | . 8 28 2 Wheel 9 | . 15 . . Device 13 | . 13 14 7 Storage 13 | . 14 14 7 Energy Gun 24 | . 26 25 6 Slashing Weapon 1 | . . 2 4 Peak Build Rating 42 | 6 8 16 42 Average Rating 10 | 3 7 10 38 On Entrance 7 | . 6 8 16 Naked Turns . | . . . . Heaviest Build 41 | 12 15 18 41 Greatest Support 50 | 20 40 40 50 Greatest Overweight (x) . | . . . . Average Overweight (x) . | . . . . Largest Inventory Capacity 15 | 8 8 8 15 Average Capacity 8 | 6 8 8 10 Most Carried 8 | 5 8 8 8 Average Carried 7 | 1 7 7 5 Final Capacity 15 | 8 8 8 15 Final Carried 8 | 2 8 8 6 Class Distribution -------------------- 96% | Mutant 3% | Tank Dominant Class ---------------- Mutant | -10/Materials Mutant | -10/Subcaves Mutant | -8/Materials Resources | -11 -10 -10 -8 ----------- Run | Yrd Mat Sub Mat Matter Collected 565 | 200 180 90 95 Remotely . | . . . . Salvage Created 766 | . 489 143 134 Parts 53 | . 39 11 3 Haulers Intercepted . | . . . . Recyclers Shooed . | . . . . Parts Field Recycled . | . . . . Retrieved Matter . | . . . . Parts Self-Destructed . | . . . . Prevented . | . . . . Kills | -11 -10 -10 -8 ------- Run | Yrd Mat Sub Mat Combat Hostiles Destroyed 21 | . 15 3 3 Guns 15 | . 12 3 . Cannons 5 | . 3 . 2 Classes Destroyed 8 | . 5 2 1 Worker 1 | . 1 . . Operator 2 | . 2 . . Watcher 3 | . 3 . . Swarmer 9 | . 9 . . Grunt 7 | . 6 . 1 Sentry 2 | . . . 2 Artisan 1 | . . 1 . Subdweller 3 | . . 3 . Best Kill Streak 6 | . 6 1 1 Combat Bots Only 4 | . 4 1 1 Max Kills in Single Turn 1 | . 1 1 1 Gunslinging . | . . . . Exploded . | . . . . Melee . | . . . . Uniques/NPCs Destroyed . | . . . . Combat | -11 -10 -10 -8 -------- Run | Yrd Mat Sub Mat Hostile Shots Fired 138 | . 83 11 44 Missed 37 | . 19 3 15 Hits 101 | . 64 8 29 Projectile 101 | . 64 8 29 Critical Strikes 2 | . . . 2 Damage Taken 1275 | . 563 247 465 Core 209 | . 156 . 53 Absorbed by Shields . | . . . . Regen/Repaired (Parts) 37 | . 37 . . Core Remaining (%) 68 | 100 . 37 . Volleys Fired 83 | . 60 9 14 Largest 3 | . 2 2 3 Hottest 199 | . 100 110 199 Shots Fired 166 | . 119 18 29 Gun 142 | . 109 18 15 Cannon 24 | . 10 . 14 Launcher . | . . . . Special . | . . . . Kinetic 10 | . 10 . . Thermal 156 | . 109 18 29 Explosive . | . . . . Electromagnetic . | . . . . Robot Hit Streak 16 | . 11 16 15 Robot Miss Streak 4 | . 4 2 1 Penetration Max . | . . . . Secondary Targets 1 | . 1 . . Max Gunslinging Chain 1 | . 1 . . Shots Hit Robots 109 | . 69 15 25 Core Hits 40 | . 29 7 4 Critical Kills . | . . . . Critical Parts Destroyed . | . . . . Critical Strikes 11 | . 8 1 2 Burn 10 | . 8 1 1 Sever 1 | . . . 1 Melee Attacks 14 | . . 7 7 Impact . | . . . . Slashing 14 | . . 7 7 Piercing . | . . . . Sneak Attacks 1 | . . 1 . Combat Hostiles . | . . . . Follow-up Attacks . | . . . . Damage Inflicted 1712 | . 929 282 501 Guns 1206 | . 802 196 208 Cannons 310 | . 127 . 183 Explosions . | . . . . Melee 196 | . . 86 110 Ramming . | . . . . Kinetic 127 | . 127 . . Thermal 1389 | . 802 196 391 Explosive . | . . . . Electromagnetic . | . . . . Impact . | . . . . Slashing 196 | . . 86 110 Piercing . | . . . . Highest Corruption . | . . . . Average Corruption . | . . . . Corruption Purged . | . . . . Corruption Blocked . | . . . . Overload Shots . | . . . . Overflow Damage 48 | . 15 . 33 Projectiles 34 | . 15 . 19 Explosions . | . . . . Melee 14 | . . . 14 Knockbacks 2 | . 2 . . Impact . | . . . . Kinetic 2 | . 2 . . Secondary . | . . . . Self-Inflicted Damage . | . . . . Shots . | . . . . Rammed . | . . . . Targets Rammed . | . . . . Kicked . | . . . . Crushed . | . . . . Highest Temperature 290 | . 117 . 290 Average Temperature 70 | . 29 . 149 Received Heat Transfer 402 | . 93 57 252 Effects 3 | . . . 3 Interference 3 | . . . 3 Siege Activations . | . . . . Martial Activations . | . . . . Shielding Activations . | . . . . Robots Disrupted . | . . . . Combat Hostiles . | . . . . Robots Corrupted . | . . . . Combat Hostiles . | . . . . Parts Fried . | . . . . Impact Corruptions . | . . . . Robots Melted 1 | . . . 1 Combat Hostiles 1 | . . . 1 Parts Melted 16 | . 7 5 4 Heat Transferred 4392 | . 2960 556 876 Parts Sabotaged . | . . . . Parts Stolen . | . . . . Parts Stripped . | . . . . Power Chain Reactions . | . . . . Alert | -11 -10 -10 -8 ------- Run | Yrd Mat Sub Mat Maximum Alert Level . | . . . . Low Security (%) 100 | 100 100 . 100 Level 1 . | . . . . Level 2 . | . . . . Level 3 . | . . . . Level 4 . | . . . . Level 5 . | . . . . High Security . | . . . . Max Security . | . . . . Peak Influence 129 | . 129 . 50 Initial . | . . . . Average 41 | . 46 . 21 Influence Increases 564 | . 479 . 85 Destroy 0b10 Robot/C 360 | . 300 . 60 Destroy 0b10 Robot/NC 30 | . 30 . . Destroy Leader 96 | . 76 . 20 Successful Hack 14 | . 10 . 4 Destroy Structure 4 | . 3 . 1 Lose Combat Pursuer 60 | . 60 . . Influence Decreases 564 | . 472 7 85 Entered New Map 4 | . . 4 . Time Decay 510 | . 432 3 75 Lost Part 50 | . 40 . 10 Squads Dispatched 4 | . 4 . . Investigation 2 | . 2 . . Extermination . | . . . . Reinforcement 2 | . 2 . . Assault . | . . . . Garrison . | . . . . Intercept . | . . . . Searches Triggered . | . . . . Construction Impeded . | . . . . Haulers Reinforced . | . . . . Active Scanning Responses . | . . . . Cargo Convoy Interrupts . | . . . . Stealth | -11 -10 -10 -8 --------- Run | Yrd Mat Sub Mat Distress Signals 2 | . 2 . . Communications Jammed . | . . . . Distress Signals . | . . . . Times Spotted 41 | . 28 4 9 Peak Tracking Total 5 | . 4 1 5 Tactical Retreats 2 | . 2 . . Traps | -11 -10 -10 -8 ------- Run | Yrd Mat Sub Mat Traps Triggered 2 | . 1 1 . Indirectly . | . . . . Trap Hack Attempts . | . . . . Triggered . | . . . . Disarmed . | . . . . Reprogrammed . | . . . . Reused . | . . . . Traps Extracted . | . . . . Installed . | . . . . Triggered . | . . . . Machines | -11 -10 -10 -8 ---------- Run | Yrd Mat Sub Mat Machines Disabled 1 | . . 1 . Max in Single Turn 1 | . . 1 . Machines Repaired . | . . . . Machines Dismantled . | . . . . Machines Sabotaged . | . . . . Overloaded Fab Kills . | . . . . Hacking | -11 -10 -10 -8 --------- Run | Yrd Mat Sub Mat Machines Accessed 10 | . 7 1 2 Terminals 8 | . 6 . 2 Fabricators . | . . . . Repair Stations 1 | . 1 . . Recycling Units . | . . . . Scanalyzers . | . . . . Garrison Access . | . . . . Total Hacks 35 | . 18 9 8 Successful 23 | . 10 9 4 Failed 12 | . 8 . 4 Catastrophic 3 | . 3 . . Database Lockouts . | . . . . Manual 24 | . 16 . 8 Terminals 24 | . 16 . 8 Fabricators . | . . . . Repair Stations 2 | . 2 . . Recycling Units . | . . . . Scanalyzers . | . . . . Garrison Access . | . . . . Terminal Hacks 16 | . 5 9 2 Record 8 | . . 8 . Prototype ID Bank 5 | . 3 . 2 Recall Investigation 1 | . 1 . . Zone Layout 1 | . 1 . . Proto ID Catalog 1 | . . 1 . Fabricator Hacks . | . . . . Repair Station Hacks 2 | . 2 . . Scan Component 1 | . 1 . . Repair 1 | . 1 . . Recycling Unit Hacks . | . . . . Scanalyzer . | . . . . Garrison Access Hacks . | . . . . Unauthorized Hacks 5 | . 3 . 2 Terminals 5 | . 3 . 2 Track 1 | . 1 . . Botnet 4 | . 2 . 2 Fabricators . | . . . . Repair Stations . | . . . . Recycling Units . | . . . . Scanalyzers . | . . . . Garrison Access . | . . . . Data Cores Recovered . | . . . . Used . | . . . . Hacking Detections 8 | . 6 . 2 Full Trace Events 1 | . 1 . . Feedback Events . | . . . . Feedback Blocked . | . . . . Robot Schematics Acquired . | . . . . Robots Built . | . . . . Authchips . | . . . . Time . | . . . . Total Robot Build Rating . | . . . . Part Schematics Acquired . | . . . . Parts Built . | . . . . Authchips . | . . . . Time . | . . . . Total Part Build Rating . | . . . . Parts Repaired 1 | . 1 . . Time 26 | . 26 . . Parts Recycled . | . . . . Recycled Matter . | . . . . Retrieved Matter . | . . . . Retrieved Components . | . . . . Parts Scanalyzed . | . . . . Part Schematics Acquired . | . . . . Parts Damaged . | . . . . Bothacking | -11 -10 -10 -8 ------------ Run | Yrd Mat Sub Mat Used RIF Installer . | . . . . Robots Hacked . | . . . . Non-combat . | . . . . Combat . | . . . . Robot Hacks Applied . | . . . . Relay Couplers Released . | . . . . Fabnet Peak Effective % . | . . . . Robots Rewired . | . . . . Allies Hacked . | . . . . Hacks Repelled . | . . . . Allies | -11 -10 -10 -8 -------- Run | Yrd Mat Sub Mat Total Allies . | . . . . Largest Group . | . . . . Highest-Rated Group . | . . . . Highest-Rated Ally . | . . . . Total Orders . | . . . . Ally Attacks . | . . . . Total Damage . | . . . . Kills . | . . . . Allies Corrupted . | . . . . Allies Melted . | . . . . Intel | -11 -10 -10 -8 ------- Run | Yrd Mat Sub Mat Active Infowar (turns) 57 | . 57 . . Seismic 57 | . 57 . . Robot Analysis Total . | . . . . Derelict Logs Recovered 2 | . . 2 . Drone Launches . | . . . . Drone Recoveries . | . . . . Exploration | -11 -10 -10 -8 ------------- Run | Yrd Mat Sub Mat Turns Passed 2658 | 49 1577 811 221 Spaces Moved 1407 | 46 800 443 118 Core 14 | 14 . . . Treads 826 | . 376 443 7 Legs 111 | . . . 111 Wheels 456 | 32 424 . . Hover . | . . . . Flight . | . . . . Fastest Speed 50 | 50 80 160 90 Average Speed 127 | 70 117 160 94 Slowest Speed 160 | 80 160 160 160 Overloaded Moves . | . . . . Propulsion Burnouts . | . . . . Robots Hopped . | . . . . Potential Cave-ins . | . . . . Cave-ins Triggered . | . . . . Exploration Rate (%) 37 | 3 98 32 16 Regions Visited 3 Branch Regions 1 Pre-discovered Areas 1 | . . 1 . Known Exits Taken . | . . . . Unknown Exits Taken 3 | 1 1 1 . Scrap Searched 7 | . . 7 . Spaces Dug 1 | . . . 1 Terrain Destroyed 1 | . . . 1 Melee 1 | . . . 1 Projectile . | . . . . AOE . | . . . . Terrain Rammed . | . . . . Walls Destroyed . | . . . . Machines Disabled . | . . . . Actions | -11 -10 -10 -8 --------- Run | Yrd Mat Sub Mat Total 2083 | 62 1317 513 191 Wait 501 | 3 428 37 33 Move 1404 | 45 799 442 118 Hop . | . . . . Pick Up 32 | 8 14 4 6 Fast Attach 3 | . 3 . . Attach 17 | 6 6 . 5 Detach . | . . . . Swap 15 | . 2 8 5 Drop 14 | . 5 6 3 Fire 83 | . 60 9 14 Melee 14 | . . 7 7 Ram . | . . . . Kick . | . . . . Crush . | . . . . Escape Stasis . | . . . . Rewire . | . . . . Trap . | . . . . Miscellaneous . | . . . . Route ------- -11/Scrapyard -10/Materials (discovered 6 exits: [*Mat x3] / [*Min x2] / *Sub) -10/Subcaves -8/Materials History --------- Turn | Location | Event 5 | -11/Scrapyard | Discovered new exit (range 15) 50 | -11/Scrapyard | Entered Materials 88 | -10/Materials | Discovered new exit (range 13) 232 | -10/Materials | Discovered new exit (range 13) 315 | -10/Materials | Build established: Mutant 317 | -10/Materials | Discovered new exit (range 7) 386 | -10/Materials | Discovered new exit (range 15) 978 | -10/Materials | Discovered new exit (range 12) 1071 | -10/Materials | Core integrity fell below 50% 1212 | -10/Materials | Discovered new exit (range 7) 1606 | -10/Materials | Repaired Med. Laser 1627 | -10/Materials | Entered Subcaves 1843 | -10/Subcaves | Learned Materials emergency access door positions 1846 | -10/Subcaves | Learned location of Storage (-8) 2099 | -10/Subcaves | Shifting Twisted Machinery released Flamer 2203 | -10/Subcaves | Visited 4L-MR0's lab 2232 | -10/Subcaves | Found Arachnoskeleton 2393 | -10/Subcaves | Discovered new exit (range 14) 2438 | -10/Subcaves | Entered Materials 2438 | -8/Materials | Evolved 4 slots: Propulsion x1, Utility x2, Weapon x1 2452 | -8/Materials | Attached Arachnoskeleton, gained temporary slots: Propulsion x3 2659 | -8/Materials | Self-destructed Last Messages --------------- Downloading prototype IDs... Imp. VTOL Module Hvy. Ion Engine 02590_ K-01 Serf cleans the Electrolysis Chamber. 02591_ Acquired Lrg. Storage Unit. 02593_ Dropped Sml. Storage Unit. 02595_ K-01 Serf cleans the Electrolysis Chamber. 02597_ Acquired Reaction Control System. 02598_ K-01 Serf cleans the Electrolysis Chamber. 02609_ Lgt. Nuclear Core destroyed. 02631_ Matter Filter disabled. 02653_ Destroyed Lgt. Nuclear Core. 02656_ C-30 ARC bursts open, deploying its payload. 02656_ H-55 Commando unfolds itself. 02656_ Slug penetrates Wall. 02658_ K-01 Serf collects debris. Map ----- +----------------------------------------------------+ | ?????????????????????????????????????????????????? | | ?????????????????????????????????????????????????? | | ?????????????????????????????????????????????????? | | ?????????????????????????????????????????????????? | | ?????????????????????????????????????????????????? | | ?????????????????????????????????????????????????? | | ?????????????????????????????????????????????????? | | ?????????????????????????????????????????????????? | | ?????????????????????????????????????????????????? | | ?????????????????????????????????????????????????? | | ?????????????????????????????????????????????????? | | ?????????????????????????????????????????????????? | | ?????????????????????????????????????????????????? | | ?????????????????????????????????????????????????? | | ?????????????????????????????????????????????????? | | ?????????????????????????????????????????????????? | | ?????????????????????????????????????????????????? | | ??????????????????###########????????????????????? | | ??????????????????# [ ! #????????????????????? | | ??????????????????# #????????????????????? | | ??????????????????#"" = #????????????### ##### | | ??????????????????#"" #????????????# ## | | ??????????????????#"T """ #????????????# ## | | ??????????????????#"" """ #????????????? T ?# | | ??????????????????#"" """ #????????????? /?# | | ??????????????????# g@g #????????????? ?## | | ??????????????????#####k###g##########????# #?# | | ?????????????????????# + ! #????# #?# | | ?????????????######### # """"""" ###### #?# | | ????????? % # """"""" + #?# | | ????????????????###### + """"""" ###### #?# | | ?????????????????????# # """"""" #????# #?# | | ?????????????????????# # """""%" ###### ### | | ?????????????????????# # + / | | ?????????????????????# ###################+##### | | ?????????????????????/ #???????????????? ??? | | ?????????????????????# #??????????????# #?? | | ?????????????????????# #??????????????# """#?? | | ?????????????????????# #??????????????# """#?? | | ?????????????????????# #??????????????# """#?? | | ?????????????????????# #??????????????# #?? | | ?????????????????????# #??????????????########?? | | ?????????????????????# ????????????????????????? | | ?????????????????????# ????????????????????????? | | ?????????????????????? ????????????????????????? | | ????????????????????????????????+????????????????? | | ?????????????????????????????????????????????????? | | ?????????????????????????????????????????????????? | | ?????????????????????????????????????????????????? | | ?????????????????????????????????????????????????? | +----------------------------------------------------+ Best States ------------- Heat Dissipation 41 Energy Generation 14 Energy Capacity 250 Matter Stores 300 Matter Capacity 300 Sight Range 16 Terrain Scan Density 10 Armor Coverage 100 Evasion (%) 57 Recoil Reduction 2 Offensive Hacking 10 Item Schematics ----------------- None Robot Schematics ------------------ None Fabricated ------------ Nothing Repaired ---------- Med. Laser | 47% | -10/Materials Alien Tech Used ----------------- None Achievements -------------- None Challenges ------------ None Game ------ Seed TrackerAntimissileRay Manual? 0 Play Time 00:22:51 Cumulative 59.0 hours Start 2025.05.31 @ 18:43:27 End 2025.06.01 @ 15:49:52 Sessions 5 Manual Loads 0 Difficulty Rogue Special Mode None Game No. 61 Rogue 61 Adventurer 0 Explorer 0 Win Type - Total 2 Types 2/0/0/0/0/0/0/0/0/0 Lore% 40 Gallery% 33 Achievement% 34 Wizard Run 0 Options --------- Layout 1 ASCII 0 Keyboard 0 Movement Mouse Keybinds 0 Fullscreen 1 Font 24/Smallcaps Map View 50x35 Zoom Use 0% Tactical HUD 1 Map Filters NONE Filters NONE Steam 1 RUN: 792df8b5-ed12-42b9-8766-aef8b885be49